Cogmind - Beta 10.2 @@@ ROGUE MODE // 2022.03.15 @ 22:27:20 Player: Yanche Result: Destroyed by D-53 Grenadier with Mini Grenade Launcher Performance ------------- Evolutions (0) 0 Regions Visited (2) 400 Robots Destroyed (12) 60 Value Destroyed (109) 109 Prototype IDs (0) 0 Alien Tech Used (0) 0 Bonus (0) 0 TOTAL SCORE: 569 Bonus ------- None Cogmind --------- Core Integrity 0/250 Matter 235/300 Energy 38/100 System Corruption 0% Temperature Cool (55) Movement Core (300) Ox5 Location -10/Mines Parts ------- > --- POWER (1) -------- (None) > --- PROPULSION (2) --- (None) > --- UTILITY (2) ------ Large Storage Unit Terrain Scanner > --- WEAPON (2) ------- (None) > --- INVENTORY (10) --- Light Ion Engine Compact Wheel Sensor Array Seismic Analyzer Transport Network Coupler Hacking Suite Datajack Mining Claw Peak State ------------ > --- POWER ------------ Light Ion Engine > --- PROPULSION ------- Wheel Wheel > --- UTILITY ---------- Large Storage Unit Terrain Scanner > --- WEAPON ----------- Small Laser Assault Rifle > --- INVENTORY -------- Light Ion Engine Compact Wheel Seismic Analyzer Hacking Suite Medium Laser Beam Cannon Datajack Mining Claw [Rating: 8] Favorites ----------- Power Light Ion Engine Engine Light Ion Engine Propulsion Wheel Wheel Wheel Utility Large Storage Unit Device Terrain Scanner Storage Large Storage Unit Weapon Small Laser Energy Gun Small Laser Energy Cannon Beam Cannon Ballistic Gun Assault Rifle Slashing Weapon Mining Claw Build | -11 -10 -10 ------- Run | Scr Mat Min Slots Evolved . | . . . Power . | . . . Propulsion . | . . . Utility . | . . . Weapon . | . . . Parts Attached 18 | 6 8 4 Power 1 | 1 . . Engine 1 | 1 . . Core . | . . . Reactor . | . . . Propulsion 2 | 2 . . Treads . | . . . Leg . | . . . Wheel 2 | 2 . . Hover . | . . . Flight . | . . . Utility 3 | 1 2 . Device 1 | . 1 . Storage 2 | 1 1 . Processor . | . . . Hackware . | . . . Protection . | . . . Artifact . | . . . Weapon 12 | 2 6 4 Energy Gun 5 | 2 1 2 Energy Cannon 1 | . . 1 Ballistic Gun 2 | . 2 . Ballistic Cannon . | . . . Launcher . | . . . Special Weapon . | . . . Impact Weapon . | . . . Slashing Weapon 4 | . 3 1 Piercing Weapon . | . . . Special Melee Weapon . | . . . Unidentified Prototypes . | . . . Parts Lost 7 | . . 7 Power 1 | . . 1 Propulsion 2 | . . 2 Utility . | . . . Weapon 4 | . . 4 Highest Loss Streak 7 | . . 7 Average Slot Usage (%) 94 | . 96 85 Engine 13 | . 14 9 Wheel 27 | . 28 23 Device 10 | . 10 14 Storage 14 | . 14 14 Energy Gun 11 | . 12 7 Ballistic Gun 8 | . 8 9 Slashing Weapon 7 | . 7 7 Naked Turns . | . . . Heaviest Build 24 | 10 24 24 Greatest Support 20 | 20 20 20 Greatest Overweight (x) 1 | . 1 1 Average Overweight (x) . | . . 1 Largest Inventory Capacity 12 | 6 12 10 Average Capacity 8 | 5 9 10 Most Carried 10 | 4 10 10 Average Carried 6 | 2 7 9 Final Capacity 10 | 6 10 10 Final Carried 10 | 4 10 8 Class Distribution -------------------- 100% | Mutant Dominant Class ---------------- Mutant | -10/Materials Mutant | -10/Mines Resources | -11 -10 -10 ----------- Run | Scr Mat Min Matter Collected 323 | 260 60 3 Remotely . | . . . Salvage Created 351 | 221 118 12 Parts 26 | 15 10 1 Haulers Intercepted 1 | . 1 . Recyclers Shooed . | . . . Parts Field Recycled . | . . . Retrieved Matter . | . . . Parts Self-Destructed . | . . . Prevented . | . . . Kills | -11 -10 -10 ------- Run | Scr Mat Min Combat Hostiles Destroyed 2 | . 1 1 Guns 1 | . 1 . Cannons 1 | . . 1 Classes Destroyed 8 | 3 4 1 Worker 1 | 1 . . Builder 1 | . 1 . Tunneler 5 | 5 . . Hauler 1 | . 1 . Recycler 1 | 1 . . Operator 1 | . 1 . Swarmer 1 | . . 1 Grunt 1 | . 1 . Best Kill Streak 3 | 3 3 1 Combat Bots Only 1 | . 1 1 Max Kills in Single Turn 1 | 1 1 1 Gunslinging . | . . . Exploded . | . . . Melee . | . . . Uniques/NPCs Destroyed . | . . . Combat | -11 -10 -10 -------- Run | Scr Mat Min Damage Taken 671 | . 125 546 Core 260 | . 23 237 Absorbed by Shields . | . . . Core Remaining (%) 100 | 100 . . Volleys Fired 39 | 19 16 4 Largest 2 | 2 2 2 Hottest 110 | 90 60 110 Shots Fired 73 | 38 29 6 Gun 71 | 38 29 4 Cannon 2 | . . 2 Launcher . | . . . Special . | . . . Kinetic 15 | . 13 2 Thermal 58 | 38 16 4 Explosive . | . . . Electromagnetic . | . . . Robot Hit Streak 7 | 5 7 2 Robot Miss Streak 6 | 6 2 1 Penetration Max . | . . . Secondary Targets . | . . . Shots Hit Robots 46 | 20 23 3 Core Hits 17 | 8 8 1 Critical Hits 1 | . . 1 Critical Kills . | . . . Critical Parts Destroyed 1 | . . 1 Melee Attacks 30 | . 30 . Impact . | . . . Slashing 30 | . 30 . Piercing . | . . . Sneak Attacks 2 | . 2 . Combat Hostiles . | . . . Follow-up Attacks . | . . . Damage Inflicted 679 | 230 388 61 Guns 491 | 230 235 26 Cannons 35 | . . 35 Explosions . | . . . Melee 148 | . 148 . Ramming 5 | . 5 . Kinetic 113 | . 99 14 Thermal 413 | 230 136 47 Explosive . | . . . Electromagnetic . | . . . Impact . | . . . Slashing 148 | . 148 . Piercing . | . . . Highest Corruption . | . . . Average Corruption . | . . . Corruption Purged . | . . . Overload Shots . | . . . Overflow Damage 68 | . 68 . Projectiles . | . . . Explosions . | . . . Melee 68 | . 68 . Knockbacks . | . . . Impact . | . . . Kinetic . | . . . Secondary . | . . . Self-Inflicted Damage 2 | . 2 . Shots . | . . . Rammed 1 | . 1 . Targets Rammed 1 | . 1 . Kicked . | . . . Crushed . | . . . Highest Temperature 120 | 120 36 55 Average Temperature 36 | 43 18 33 Received Heat Transfer 86 | . 66 20 Siege Activations . | . . . Robots Corrupted . | . . . Combat Hostiles . | . . . Parts Fried . | . . . Impact Corruptions . | . . . Robots Melted . | . . . Combat Hostiles . | . . . Parts Melted 1 | 1 . . Heat Transferred 1067 | 620 336 111 Parts Sabotaged . | . . . Parts Stolen . | . . . Parts Stripped . | . . . Power Chain Reactions . | . . . Missiles Intercepted . | . . . Alert | -11 -10 -10 ------- Run | Scr Mat Min Peak Influence 74 | 35 74 43 Initial 28 | . 22 28 Average 28 | 13 36 19 Maximum Alert Level . | . . . Low Security (%) 100 | 100 100 100 Level 1 . | . . . Level 2 . | . . . Level 3 . | . . . Level 4 . | . . . Level 5 . | . . . High Security . | . . . Max Security . | . . . Squads Dispatched 1 | . 1 . Investigation . | . . . Extermination . | . . . Reinforcement 1 | . 1 . Assault . | . . . Garrison . | . . . Intercept . | . . . Construction Impeded . | . . . Haulers Reinforced . | . . . Stealth | -11 -10 -10 --------- Run | Scr Mat Min Distress Signals 1 | . 1 . Communications Jammed . | . . . Distress Signals . | . . . Times Spotted 16 | . 7 9 Peak Tracking Total 8 | . 3 8 Tactical Retreats . | . . . Traps | -11 -10 -10 ------- Run | Scr Mat Min Traps Triggered . | . . . Indirectly . | . . . Trap Hack Attempts . | . . . Triggered . | . . . Disarmed . | . . . Reprogrammed . | . . . Reused . | . . . Traps Extracted . | . . . Installed . | . . . Triggered . | . . . Machines | -11 -10 -10 ---------- Run | Scr Mat Min Machines Disabled . | . . . Max in Single Turn . | . . . Machines Sabotaged . | . . . Garrisons Compromised . | . . . Overloaded Fab Kills . | . . . Fab Network Shutdowns . | . . . Hacking | -11 -10 -10 --------- Run | Scr Mat Min Machines Accessed 2 | . 2 . Terminals 2 | . 2 . Fabricators . | . . . Repair Stations . | . . . Recycling Units . | . . . Scanalyzers . | . . . Garrison Access . | . . . Total Hacks 5 | . 5 . Successful 2 | . 2 . Failed 3 | . 3 . Catastrophic 1 | . 1 . Database Lockouts . | . . . Manual 3 | . 3 . Terminals 5 | . 5 . Fabricators . | . . . Repair Stations . | . . . Recycling Units . | . . . Scanalyzers . | . . . Garrison Access . | . . . Terminal Hacks 2 | . 2 . Alert Level 1 | . 1 . Zone Layout 1 | . 1 . Fabricator Hacks . | . . . Repair Station Hacks . | . . . Recycling Unit Hacks . | . . . Scanalyzer . | . . . Garrison Access Hacks . | . . . Unauthorized Hacks . | . . . Terminals . | . . . Fabricators . | . . . Repair Stations . | . . . Recycling Units . | . . . Scanalyzers . | . . . Garrison Access . | . . . Data Cores Recovered . | . . . Used . | . . . Hacking Detections 2 | . 2 . Full Trace Events . | . . . Feedback Events . | . . . Feedback Blocked . | . . . Robot Schematics Acquired . | . . . Robots Built . | . . . Matter . | . . . Time . | . . . Total Robot Build Rating . | . . . Part Schematics Acquired . | . . . Parts Built . | . . . Matter . | . . . Time . | . . . Total Part Build Rating . | . . . Parts Repaired . | . . . Time . | . . . Parts Recycled . | . . . Recycled Matter . | . . . Retrieved Matter . | . . . Retrieved Components . | . . . Parts Scanalyzed . | . . . Part Schematics Acquired . | . . . Parts Damaged . | . . . Bothacking | -11 -10 -10 ------------ Run | Scr Mat Min Used RIF Installer . | . . . Robots Hacked . | . . . Non-combat . | . . . Combat . | . . . Robot Hacks Applied . | . . . Relay Couplers Released . | . . . Robots Rewired . | . . . Allies Hacked . | . . . Hacks Repelled . | . . . Allies | -11 -10 -10 -------- Run | Scr Mat Min Total Allies . | . . . Largest Group . | . . . Highest-Rated Group . | . . . Highest-Rated Ally . | . . . Total Orders . | . . . Ally Attacks . | . . . Total Damage . | . . . Kills . | . . . Allies Corrupted . | . . . Allies Melted . | . . . Intel | -11 -10 -10 ------- Run | Scr Mat Min Robot Analysis Total . | . . . Derelict Logs Recovered . | . . . Drone Launches . | . . . Drone Recoveries . | . . . Exploration | -11 -10 -10 ------------- Run | Scr Mat Min Turns Passed 597 | 154 376 67 Spaces Moved 405 | 107 240 58 Core 4 | 4 . . Treads . | . . . Legs . | . . . Wheels 401 | 103 240 58 Hover . | . . . Flight . | . . . Fastest Speed 50 | 50 80 90 Average Speed 86 | 78 89 90 Slowest Speed 90 | 80 90 90 Overloaded Moves . | . . . Propulsion Burnouts . | . . . Robots Hopped . | . . . Cave-ins Triggered . | . . . Exploration Rate (%) 23 | 7 41 22 Regions Visited 2 Branch Regions 1 Pre-discovered Areas . | . . . Known Exits Taken . | . . . Unknown Exits Taken 2 | 1 1 . Scrap Searched . | . . . Spaces Dug 17 | . 17 . Terrain Destroyed 17 | . 17 . Melee 17 | . 17 . Projectile . | . . . AOE . | . . . Terrain Rammed . | . . . Walls Destroyed . | . . . Machines Disabled . | . . . Actions | -11 -10 -10 --------- Run | Scr Mat Min Total 510 | 135 309 66 Wait 7 | . 7 . Move 403 | 106 239 58 Hop . | . . . Pick Up 10 | 4 6 . Fast Attach 8 | 6 2 . Attach 3 | . 1 2 Detach 1 | . 1 . Swap 7 | . 5 2 Drop 1 | . 1 . Fire 39 | 19 16 4 Melee 30 | . 30 . Ram 1 | . 1 . Kick . | . . . Crush . | . . . Escape Stasis . | . . . Rewire . | . . . Trap . | . . . Miscellaneous . | . . . Route ------- -11/Scrapyard -10/Materials -10/Mines History --------- Turn | Location | Event 17 | -11/Scrapyard | Discovered new exit (range 16) 155 | -11/Scrapyard | Entered Materials 310 | -10/Materials | Build established: Mutant 420 | -10/Materials | Discovered new exit (range 16) 531 | -10/Materials | Entered Mines 546 | -10/Mines | Assembled infested the area 580 | -10/Mines | Core integrity fell below 50% 598 | -10/Mines | Destroyed by D-53 Grenadier with Mini Grenade Launcher Last Messages --------------- C-30 ARC bursts open, deploying its payload. D-53 Grenadier unfolds itself. as-38858 destroyed. Lgt. Ion Engine destroyed. Wheel destroyed. Assault Rifle destroyed. as-49113 destroyed. as-78417 destroyed. as-30570 destroyed. Acquired 2 matter. Acquired 1 matter. HV Slug penetrates as-15103. as-15103 suffers critical hit. as-15103 destroyed. S-10 Pest destroyed. Wheel destroyed. D-53 Grenadier suffers critical hit. Destroyed Cmb. Airjet. Beam Cannon destroyed. Med. Laser destroyed. Map ----- +----------------------------------------------------+ | ??????????????????????????? ?????????????????????? | | ??????????????????????????? ?????????????????????? | | ??????????????????????????? ?????????????????????? | | ???????? ?????????????#???? ?????????????????????? | | ?????????#???????????#?????%???#?????????????????? | | ?????? ???????????????????? ?????????????????????? | | ??????????????????????????? ??? ????????????????? | | ?????????????#???#????????# #????????????????????? | | ????????????#??????????#??# #????????????????????? | | ?????????????######?#?????# #????#???????????????? | | ?????????????# ####????# #????????????????????? | | ?????####????# #????# #????????????????????? | | ???#" = # #????# #????????????????????? | | ?? "%" %[ %[ ###### #??????####??????????? | | ??# " = #??????# ##?????????? | | ???# ### ###### #?????? ##????????? | | ???#??????## #????# #????#? #????????? | | ???????????## # ###?#??# #?????? #?#??????? | | ????????????## ####???#??# #?????## #????????? | | ?????????????# ??????##### ######## #????????? | | ????????????# ?? ???# #????????? | | ???????????# ???? ## d #????????? | | ???????????## ?????# d ###### #????????? | | ????????????####????## #????# #????????? | | ???????????????#????# #????## #????????? | | ?????????????????????# @ #?????## ##????????? | | ????????????????????# #????# ##?????????? | | ????????????????????# #???# #??????????? | | ???????????????????# #???# #??????????? | | ??????????????????# #??# #??????????? | | ????????????????? #??# ??????????? | | ??????????????? ##?? ??????????? | | ?????????????? ###??? ??????????? | | ????????????? #????? ??????????? | | ????????????? #????? ??????????? | | ????????????? ?????# ??????????? | | ?????????????? ??????# ??????????? | | ???????????????? ?????? ??????????? | | ?????????????????? t ?????? ??????????? | | ????????????????????? ####????????#??????????? | | ??????????????????????? #???????????????????????? | | ?????????????????????????????????????????????????? | | ?????????????????????????????????????????????????? | | ?????????????????????????????????????????????????? | | ?????????????????????????????????????????????????? | | ?????????????????????????????????????????????????? | | ?????????????????????????????????????????????????? | | ?????????????????????????????????????????????????? | | ?????????????????????????????????????????????????? | | ?????????????????????????????????????????????????? | +----------------------------------------------------+ Best States ------------- Heat Dissipation 25 Energy Generation 10 Energy Capacity 125 Matter Stores 300 Matter Capacity 300 Sight Range 16 Terrain Scan Range 14 Terrain Scan Density 10 Evasion (%) 44 Item Schematics ----------------- None Robot Schematics ------------------ None Fabricated ------------ Nothing Alien Tech Used ----------------- None Achievements -------------- Part-time Excavator Challenges ------------ None Game ------ Seed FactoryTiamatBay Manual? 0 Play Time 00:10:41 Cumulative 68.0 hours Start 2022.03.15 @ 22:17:48 End 2022.03.15 @ 22:27:20 Sessions 1 Manual Loads 0 Difficulty Rogue Special Mode None Game No. 64 Rogue 54 Adventurer 0 Explorer 10 Win Type - Total 0 Types 0/0/0/0/0/0/0/0/0 Lore% 46 Gallery% 44 Achievement% 31 Wizard Run 0 Options --------- ASCII 0 Keyboard 0 Movement Numpad Keybinds 0 Fullscreen 1 Font 18/SmallcapsGlow Map View 76x50 Tactical HUD 0 Map Filters NONE Filters NONE Steam 1 RUN: 11caf8f9-658c-456a-9ae1-d2b44dbb61c3